bitfinex/quotes_ETHUSD_20250721
["timestamp","ask_amount","ask_price","bid_price","bid_amount"]
[1753130958750,21.49811216,3761.2,3761.1,0.001]
[1753130959074,23.91577431,3761.2,3761.1,0.001]
[1753130959248,23.91577431,3761.2,3761.1,1e-08]
[1753130959442,2.65929156,3760.4,3760.3,0.001]
[1753130959667,6.47699156,3760.4,3760.3,0.001]
[1753130959854,6.92839156,3760.4,3760.3,0.001]
[1753130960057,7.24482156,3760.4,3760.3,0.001]
[1753130960389,3.42712156,3760.4,3760.3,0.001]
[1753130962599,8.07952156,3760.4,3760.3,0.001]
[1753130962885,11.07952156,3760.4,3760.3,0.001]
[1753130972906,2.65985743,3759.6,3759.5,0.001]
[1753130977902,3.61032071,3759.6,3759.5,0.001]
[1753130978093,4.06172071,3759.6,3759.5,0.001]
[1753130978423,3.61032071,3759.6,3759.5,0.001]
[1753130980615,4.06172071,3759.6,3759.5,0.001]
[1753130981516,8.23572071,3759.6,3759.5,0.001]
[1753130984810,11.23572071,3759.6,3759.5,0.001]
[1753130985011,2.66042353,3758.8,3758.7,0.001]
[1753130985424,7.27982353,3758.8,3758.7,0.001]
[1753130985600,8.06102353,3758.8,3758.7,0.001]
[1753130986201,11.06102353,3758.8,3758.7,1e-08]
[1753130988369,11.19271939,3758.8,3758.7,1e-08]
[1753130988564,11.96054939,3758.8,3758.7,1e-08]
[1753130989479,2.66018894,3759.2,3758.7,1e-08]
[1753130989480,1.01579887,3759.5,3758.7,0.47140001]
[1753130989632,2.66031592,3759.0,3758.7,0.47140001]
[1753130989976,4.168,3759.3,3758.9,0.7636]
[1753130990142,14.75405874,3760.1,3758.9,0.7636]
[1753130990143,4.168,3759.4,3758.9,0.7636]
[1753130990347,12.09451915,3760.1,3758.9,0.7636]
[1753130990348,6.82894514,3759.5,3759.0,0.4714]
[1753130990548,2.66000567,3759.4,3759.0,0.4714]
[1753130990868,2.66000567,3759.4,3759.1,0.4714]
[1753130991092,2.66000567,3759.4,3759.2,0.4714]
[1753130991369,6.82895082,3759.5,3759.2,0.4714]
[1753130991571,6.82895082,3759.5,3758.9,0.7636]
[1753130991572,4.169,3759.5,3759.0,2.66027696]
[1753130991865,2.65999893,3759.4,3759.2,0.4714]
[1753130992066,6.82895564,3759.5,3758.9,3.42392338]
[1753130992261,6.82895564,3759.5,3759.0,0.4714]
[1753130992568,6.82895564,3759.5,3759.1,0.4714]
[1753130993565,0.1328,3759.1,3758.9,3.42392338]
[1753130993768,2.66000724,3759.4,3759.2,0.4714]
[1753130994136,2.65978895,3759.7,3759.2,0.4714]
[1753130994338,4.163,3759.6,3759.3,0.4714]
[1753130994544,2.65981875,3759.7,3759.4,0.4714]
[1753130995050,0.1328,3759.4,3758.9,0.7636]
[1753130995252,2.65974284,3759.8,3759.2,0.8034]
[1753130995643,4.162,3759.9,3759.3,0.4714]
[1753130995838,2.65985595,3759.7,3759.3,0.4714]
[1753130996276,2.65983486,3759.7,3759.3,0.4714]
[1753130996765,2.65990074,3759.6,3759.3,0.4714]
[1753130998074,2.65980995,3759.7,3759.3,0.4714]
[1753130998591,2.65987248,3759.6,3759.3,0.4714]
[1753131000265,2.65993682,3759.5,3759.3,0.4714]
[1753131000467,2.65988041,3759.6,3759.3,0.4714]
[1753131001587,0.1328,3759.3,3759.2,0.8034]
[1753131001783,0.1328,3759.3,3759.2,3.46354045]
[1753131001987,0.1328,3759.3,3759.2,3.81257458]
[1753131002188,0.1328,3759.3,3759.2,4.28397458]
[1753131002506,0.002,3760.4,3759.6,2.6598109]
[1753131002803,2.65942341,3760.3,3759.7,0.4714]
[1753131002963,0.002,3760.4,3759.7,0.4714]
[1753131003171,0.466,3760.4,3759.6,4.152]
[1753131003371,1.39652995,3760.3,3759.6,4.152]
[1753131003588,2.65962245,3760.0,3759.6,4.152]
[1753131003990,0.1328,3759.6,3759.3,0.7563]
[1753131004302,0.1328,3759.4,3759.3,1.2277]
[1753131007972,0.1328,3759.4,3759.3,0.7563]
[1753131008379,0.1328,3759.4,3759.3,1.2277]
[1753131009207,0.1328,3759.4,3759.3,4.69165778]
[1753131009395,2.65950373,3760.1,3759.3,2.05818878]
[1753131009594,0.002,3760.2,3759.4,0.4714]
[1753131009595,0.1328,3759.6,3759.4,0.4714]
[1753131009794,2.79266579,3759.6,3759.5,4.145]
[1753131009995,2.79266579,3759.6,3759.5,4.144]
[1753131010684,2.79266579,3759.6,3759.3,0.7563]
[1753131010685,0.1328,3759.6,3759.3,0.7563]
[1753131010885,2.65999893,3759.4,3759.3,0.7563]
[1753131011096,2.65994137,3759.5,3759.3,4.9013]
[1753131011295,0.464,3760.0,3759.4,4.144]
[1753131011296,2.65984018,3759.7,3759.4,4.144]
[1753131011532,2.65984018,3759.7,3759.4,4.6154]
[1753131011714,2.65980288,3759.7,3759.5,0.4714]
[1753131012684,0.1328,3759.5,3759.4,6.80399893]
[1753131012911,0.002,3760.2,3759.4,4.9696]
[1753131013113,0.1328,3759.9,3759.6,2.65984601]
[1753131013457,0.1328,3759.9,3759.7,0.49799786]
[1753131013744,0.1328,3759.9,3759.8,4.144]
[1753131013946,0.002,3760.2,3759.8,6.72118439]
[1753131014134,0.002,3760.2,3760.1,4.02400373]
[1753131014342,0.002,3760.2,3760.1,4.05059876]
[1753131014521,0.002,3760.2,3760.1,8.91317589]
[1753131014708,0.002,3760.2,3760.1,8.88658086]
[1753131015921,0.002,3760.2,3760.1,8.88758086]
[1753131016242,0.002,3760.2,3760.1,8.88558086]
[1753131016841,0.002,3760.2,3760.1,6.22607713]
[1753131017251,0.002,3760.2,3760.1,6.25267216]
[1753131017567,0.002,3760.2,3760.1,0.84109503]
[1753131017720,0.002,3760.2,3760.1,0.8145]
[1753131017917,13.93411071,3760.2,3759.2,0.7659]
[1753131018166,13.93411071,3760.2,3759.3,4.15]
[1753131018167,10.8303661,3759.7,3759.3,4.15]
[1753131018452,2.65999893,3759.4,3759.3,4.15]
[1753131019028,2.65987659,3759.6,3759.3,4.15]
[1753131019355,0.002,3760.2,3759.4,1.2588]
[1753131019521,2.6596549,3759.9,3759.4,1.2588]
[1753131020019,0.002,3760.2,3759.4,3.91879609]
[1753131020221,2.66145332,3760.2,3759.4,1.2588]
[1753131020721,11.22359143,3760.2,3758.8,0.7584]
[1753131020918,2.66005104,3759.4,3758.9,4.17460352]
[1753131021122,2.65991654,3759.6,3759.0,0.439]
[1753131021344,2.65995223,3759.5,3759.0,0.439]
[1753131022151,0.4423,3760.1,3759.1,4.151]
[1753131022320,0.4423,3760.1,3759.1,4.59]
[1753131022321,1.16658914,3760.0,3759.1,4.59]
[1753131022844,2.65984415,3759.7,3759.1,4.59]
[1753131023223,2.65990631,3759.6,3759.1,4.59]
[1753131023441,2.659948,3759.5,3759.1,4.151]
[1753131023842,2.66000008,3759.4,3759.1,4.151]
[1753131024064,0.1328,3759.2,3759.1,4.151]
[1753131025134,0.1328,3759.2,3759.1,4.148]
[1753131025330,0.1328,3759.2,3758.9,0.02660352]
[1753131025560,0.1328,3759.2,3759.0,4.147]
[1753131026068,0.1328,3759.2,3758.8,0.7584]
[1753131026069,2.66021878,3759.1,3758.8,0.7584]
[1753131026265,0.1328,3759.0,3758.9,4.147]
[1753131027342,2.79308198,3759.0,3758.8,0.7584]
[1753131027691,2.66035276,3758.9,3758.8,0.7584]
[1753131027856,0.5751,3759.0,3758.8,4.144]
[1753131028174,2.66040294,3758.9,3758.8,4.144]
[1753131028387,2.66042353,3758.8,3758.7,1e-08]
[1753131028607,2.66042353,3758.8,3758.7,4.14400001]
[1753131029505,0.4423,3759.0,3758.7,1e-08]
[1753131029725,2.6603565,3758.9,3758.7,4.14400001]
[1753131030776,2.66042353,3758.8,3758.7,4.14400001]
[1753131030986,2.66038167,3758.9,3758.7,4.14400001]
[1753131031602,1.17627768,3759.6,3758.7,4.14400001]
[1753131031603,2.66042353,3758.8,3758.7,4.14400001]
[1753131031807,2.66037494,3758.9,3758.7,4.14400001]
[1753131033715,3.83616171,3759.6,3758.7,4.14400001]
[1753131033716,1.17627768,3759.6,3758.7,4.14400001]
[1753131033883,2.66004258,3759.4,3758.7,4.14400001]
[1753131034086,0.39122533,3759.5,3758.7,4.14400001]
[1753131034087,3.05115351,3759.5,3758.7,4.14400001]
[1753131034328,2.66011089,3759.3,3758.7,4.14400001]
[1753131034726,2.66014381,3759.2,3758.7,4.14400001]
[1753131036093,0.1328,3759.0,3758.8,0.439]
[1753131036414,0.1328,3759.0,3758.9,3.89203571]
[1753131037405,2.66149024,3760.2,3759.5,2.65988725]
[1753131037606,0.002,3760.2,3759.6,4.135]
[1753131037779,2.65950373,3760.1,3759.6,4.135]
[1753131038118,3.10180373,3760.1,3759.6,4.135]
[1753131038417,0.4423,3760.1,3759.6,4.135]
[1753131038590,3.10188594,3760.0,3759.6,4.135]
[1753131038794,2.65965789,3759.9,3759.6,4.135]
[1753131039495,2.65971795,3759.8,3759.6,4.135]
[1753131039693,3.34672413,3759.9,3759.6,4.135]
[1753131040596,2.65965309,3759.9,3759.6,4.135]
[1753131040918,2.65978668,3759.7,3759.6,4.135]
[1753131041781,2.65973394,3759.8,3759.6,4.135]
[1753131042417,11.93961334,3760.2,3758.9,0.9255]
[1753131042592,11.93961334,3760.2,3758.7,1e-08]
[1753131042593,2.66042353,3758.8,3758.7,1e-08]
[1753131042924,0.7883,3759.5,3758.7,1e-08]
[1753131043134,2.66042353,3758.8,3758.7,1e-08]
[1753131043589,0.4423,3759.2,3758.7,1e-08]
[1753131043795,2.66039584,3758.9,3758.7,1e-08]
[1753131044196,2.66042353,3758.8,3758.7,1e-08]
[1753131047894,3.13452353,3758.8,3758.7,1e-08]
[1753131048215,3.71400527,3758.8,3758.7,1e-08]
[1753131050832,3.23990527,3758.8,3758.7,1e-08]
[1753131051195,0.1328,3759.1,3758.8,0.7795]
[1753131051394,0.1328,3759.1,3758.8,0.80610423]
[1753131051613,0.1328,3759.1,3758.9,0.4431]
[1753131052030,0.1328,3759.1,3758.8,0.80610423]
[1753131052730,2.66042353,3758.8,3758.7,1e-08]
[1753131053034,2.66042353,3758.8,3758.7,4.13400001]
[1753131053697,2.66040985,3758.9,3758.7,4.13400001]
[1753131053920,2.66042353,3758.8,3758.7,4.13400001]
[1753131054320,0.4741,3759.4,3758.7,4.13400001]
[1753131054532,2.66029001,3759.0,3758.7,4.57710001]
[1753131054728,2.66037768,3758.9,3758.7,4.57710001]
[1753131054931,1.15675082,3759.3,3758.7,4.13400001]
[1753131054932,2.66042353,3758.8,3758.7,4.13400001]
[1753131058579,2.66042353,3758.8,3758.7,4.13300001]
[1753131059047,2.66036814,3758.9,3758.7,4.13300001]
[1753131059343,2.66036814,3758.9,3758.7,1e-08]
[1753131059513,2.66036814,3758.9,3758.8,4.133]
[1753131060143,2.66029966,3759.0,3758.8,4.133]
[1753131060811,2.66034294,3759.0,3758.8,4.133]
[1753131061237,2.66035276,3758.9,3758.8,4.133]
[1753131061433,2.66030822,3759.0,3758.8,4.133]
[1753131061825,2.66035276,3758.9,3758.8,4.133]
[1753131062524,2.6602954,3759.0,3758.8,4.133]
[1753131063024,2.66035276,3758.9,3758.8,4.133]
[1753131063531,2.66030948,3759.0,3758.8,4.133]
[1753131063742,2.66035276,3758.9,3758.8,4.133]
[1753131065554,0.1328,3758.8,3758.7,1e-08]
[1753131065759,0.1328,3758.8,3758.7,4.13300001]
[1753131067662,2.79322353,3758.8,3758.7,4.13300001]
[1753131068421,0.1328,3758.8,3758.7,4.13300001]
[1753131069023,2.79322353,3758.8,3758.7,4.13300001]
[1753131072248,0.1328,3758.8,3758.7,4.13300001]
[1753131073481,2.79322353,3758.8,3758.7,4.13300001]
[1753131073681,0.1328,3758.8,3758.7,4.13300001]
[1753131073896,14.73916702,3759.5,3759.0,0.55]
[1753131073897,0.002,3759.5,3759.0,0.55]
[1753131074061,0.002,3759.5,3759.4,4.01059893]
[1753131074258,0.002,3759.5,3759.4,8.17019891]
[1753131074552,0.002,3759.5,3759.4,8.14359893]
[1753131074773,0.002,3759.5,3759.4,9.66706704]
[1753131078358,0.002,3759.5,3759.4,1.88096811]
[1753131078685,0.002,3759.5,3759.4,8.03749893]
[1753131079953,0.002,3759.5,3759.4,8.58749893]
[1753131081103,0.002,3759.5,3759.4,11.58749893]
[1753131083860,0.002,3759.5,3759.4,11.72029893]
[1753131087799,0.002,3759.5,3759.4,4.4834]
[1753131087969,0.002,3759.5,3759.2,2.66012556]
[1753131088169,0.002,3759.5,3759.3,4.131]
[1753131090808,0.002,3759.5,3759.1,3.0]
[1753131090971,2.66011537,3759.3,3758.7,7.17890001]
[1753131091170,0.6069,3759.2,3758.8,7.15660423]
[1753131091470,0.6069,3759.2,3758.8,7.13]
[1753131091670,0.6069,3759.2,3758.9,0.02660352]
[1753131092007,0.6069,3759.2,3759.0,4.13]
[1753131093187,0.1328,3759.2,3759.0,4.13]
[1753131093394,0.1328,3759.2,3758.7,9.8393891]
[1753131093598,0.1328,3759.2,3758.8,4.15660423]
[1753131094315,2.792943,3759.2,3758.8,4.15660423]
[1753131094819,2.66042353,3758.8,3758.7,1e-08]
[1753131095021,2.79322353,3758.8,3758.7,4.13000001]
[1753131095196,0.6069,3758.8,3758.7,4.13000001]
[1753131095392,3.26732353,3758.8,3758.7,4.13000001]
[1753131096421,3.26732353,3758.8,3758.7,1e-08]
[1753131096713,5.44220061,3758.8,3758.7,4.13000001]
[1753131096918,5.44220061,3758.8,3758.7,1e-08]
[1753131097228,0.1328,3758.8,3758.7,4.13000001]
[1753131097385,0.1328,3758.8,3758.7,4.60150495]
[1753131097995,0.1328,3758.8,3758.7,0.02660495]
[1753131098199,3.26732353,3758.8,3758.7,4.13000001]
[1753131098395,0.1328,3758.8,3758.7,4.13000001]
[1753131102521,2.79322353,3758.8,3758.7,4.13000001]
[1753131102726,0.1328,3758.8,3758.7,4.13000001]
[1753131105733,4.07122353,3758.8,3758.7,4.13000001]
[1753131106720,4.07122353,3758.8,3758.7,1e-08]
[1753131107236,4.07122353,3758.8,3758.7,4.12900001]
[1753131108988,5.45774118,3758.8,3758.7,1e-08]
[1753131109193,5.45774118,3758.8,3758.7,4.12900001]
[1753131109589,5.45774118,3758.8,3758.7,1e-08]
[1753131111177,2.66049431,3758.7,3758.6,1e-08]
[1753131111363,5.66098988,3758.0,3756.7,0.1328]
[1753131111492,5.66098988,3758.0,3755.9,6.382]
[1753131111493,3.47166505,3756.2,3755.9,0.001]
[1753131111996,3.92936505,3756.2,3755.9,0.001]
[1753131112199,5.3158827,3756.2,3755.9,0.001]
[1753131113930,2.66226505,3756.2,3755.9,0.001]
[1753131114136,1.2344,3756.6,3755.9,0.001]
[1753131114303,1.2344,3756.6,3755.9,0.02762477]
[1753131114947,1.2344,3756.6,3755.9,2.69006876]
[1753131115831,1.2344,3756.6,3755.9,0.02762477]
[1753131116134,2.66226505,3756.2,3755.9,0.001]
[1753131116434,3.43896505,3756.2,3755.9,0.001]
[1753131116734,3.89666505,3756.2,3755.9,0.001]
[1753131117202,4.96554389,3756.2,3755.9,0.001]
[1753131117594,7.96554389,3756.2,3755.9,0.001]
[1753131119061,0.8128,3755.8,3755.1,0.021]
[1753131119282,2.662974,3755.2,3755.1,0.021]
[1753131119440,3.475774,3755.2,3755.1,0.021]
[1753131119783,3.933474,3755.2,3755.1,0.021]
[1753131120272,6.933474,3755.2,3755.1,0.021]
[1753131121067,11.063474,3755.2,3755.1,0.021]
[1753131121238,12.46243954,3755.2,3755.1,0.021]
[1753131121952,1.2705,3755.2,3755.1,0.021]
[1753131122151,3.475774,3755.2,3755.1,0.021]
[1753131122544,3.933474,3755.2,3755.1,0.021]
[1753131123056,10.85526828,3754.6,3754.0,0.1328]
[1753131123225,3.47712206,3753.3,3752.5,0.1328]
[1753131123539,10.61112206,3753.3,3752.3,0.8229]
[1753131123740,5.66432206,3753.3,3752.3,0.8229]
[1753131124065,0.8223,3753.7,3752.7,0.4557]
[1753131124362,0.55,3753.6,3752.9,2.66457799]
[1753131124564,0.55,3754.0,3753.3,0.4557]
[1753131124765,0.55,3754.0,3752.7,6.80668033]
[1753131124766,0.8223,3754.2,3753.2,2.66535214]
[1753131124935,2.66389982,3753.9,3753.2,0.001]
[1753131125128,0.8223,3754.2,3753.2,0.001]
[1753131125328,0.8223,3754.2,3753.3,0.02664322]
[1753131125631,2.6637718,3754.1,3753.3,2.69094733]
[1753131125963,2.66381465,3754.1,3753.3,0.02664322]
[1753131126162,0.8223,3754.2,3753.4,2.66424181]
[1753131126368,2.66377037,3754.1,3753.4,0.02664251]
[1753131126547,2.6638485,3754.0,3753.3,2.66425834]
[1753131126971,2.66391102,3753.9,3753.2,2.69203645]
[1753131127268,2.66375712,3754.1,3753.2,0.001]
[1753131127565,2.66432206,3753.3,3753.2,0.001]
[1753131127766,3.46232206,3753.3,3753.2,0.001]
[1753131127968,6.92002206,3753.3,3753.2,0.001]
[1753131128632,11.06902206,3753.3,3753.2,0.001]
[1753131129258,6.92002206,3753.3,3753.2,0.001]
[1753131129461,11.6410639,3753.3,3753.2,0.001]
[1753131129659,11.6410639,3753.3,3753.2,1e-08]
[1753131129856,5.66439305,3753.2,3753.1,1e-08]
[1753131130075,6.12209305,3753.2,3753.1,1e-08]
[1753131130273,10.27309305,3753.2,3753.1,1e-08]
[1753131130457,10.53934082,3753.2,3753.1,1e-08]
[1753131131237,6.38834082,3753.2,3753.1,1e-08]
[1753131131578,10.54034082,3753.2,3753.1,1e-08]
[1753131132351,10.53934082,3753.2,3753.1,1e-08]
[1753131133648,2.66383074,3754.0,3753.1,1e-08]
[1753131133649,0.4577,3753.9,3753.1,1e-08]
[1753131133860,0.1328,3753.2,3753.1,0.45570001]
[1753131135453,0.1328,3753.2,3753.1,3.12016405]
[1753131135801,0.1328,3753.2,3753.1,0.45570001]
[1753131138062,0.1328,3753.2,3753.1,3.12016405]
[1753131138501,0.1328,3753.2,3753.1,0.45570001]
[1753131139408,0.1328,3753.2,3753.1,3.12016405]
[1753131139589,0.1328,3753.2,3753.1,0.45570001]
[1753131139796,0.1328,3753.2,3753.1,3.12016405]
[1753131140289,0.1328,3753.2,3753.1,1e-08]
[1753131140809,0.4576,3754.4,3753.3,2.66430945]
[1753131140979,0.1328,3753.6,3753.4,7.26048516]
[1753131141176,0.1328,3753.6,3753.5,3.11748009]
[1753131141791,0.1328,3753.6,3753.5,0.4533]
[1753131141989,0.1328,3753.6,3753.5,3.11748009]
[1753131142196,0.1328,3753.6,3753.5,0.4533]
[1753131142398,0.1328,3753.6,3753.5,3.11748009]
[1753131142783,10.98806828,3753.6,3753.4,4.142]
[1753131142988,0.1328,3753.6,3753.4,4.142]
[1753131143192,0.1328,3753.6,3753.5,0.4533]
[1753131144214,2.66429426,3753.4,3753.1,0.82470001]
[1753131144428,2.66423161,3753.5,3753.2,4.141]
[1753131144577,3.973192,3753.8,3753.2,4.141]
[1753131144785,8.49164605,3753.8,3753.2,4.141]
[1753131144981,5.82762804,3753.8,3753.2,4.141]
[1753131145190,2.86420505,3753.8,3753.2,6.80537711]
[1753131145398,0.1328,3753.4,3753.2,4.141]
[1753131145601,0.1328,3753.4,3753.3,2.66432206]
[1753131145805,0.1328,3753.4,3753.3,0.4533]
[1753131146592,0.1328,3753.4,3753.2,6.80537912]
[1753131147278,0.1328,3753.4,3753.3,4.141]
[1753131147715,0.5904,3753.4,3753.3,4.138]
[1753131148019,3.82502805,3753.4,3753.3,4.138]
[1753131148404,3.82505469,3753.4,3753.3,4.138]
[1753131149033,0.70317698,3753.4,3753.3,4.138]
[1753131149401,3.36742805,3753.4,3753.3,4.138]
[1753131149703,0.70317698,3753.4,3753.2,4.138]
[1753131149901,0.57037698,3753.3,3753.2,4.138]
[1753131151445,0.1328,3753.2,3753.1,0.00100001]
[1753131151645,0.70566141,3753.2,3753.1,4.13900001]
[1753131152401,0.70566141,3753.2,3753.1,7.80032866]
[1753131152604,0.71590015,3753.7,3753.5,2.66413827]
[1753131152856,0.57324366,3753.6,3753.5,2.66413827]
[1753131152999,0.1328,3753.8,3753.5,4.136]
[1753131153200,0.71590015,3754.2,3754.0,2.66379417]
[1753131153430,0.57328118,3754.1,3753.7,0.7571]
[1753131153644,0.1328,3754.2,3753.8,2.69060614]
[1753131153847,0.1328,3754.2,3754.1,2.66375429]
[1753131154215,0.57328118,3754.8,3754.1,0.4533]
[1753131154519,0.1328,3754.5,3754.3,2.6636026]
[1753131154713,0.1328,3754.5,3754.4,0.02663541]
[1753131155807,0.1328,3754.5,3754.4,0.47993541]
[1753131156002,0.1328,3754.5,3754.4,4.135]
[1753131156743,0.1328,3754.5,3754.2,3.43027976]
[1753131157038,0.1328,3754.5,3754.3,4.135]
[1753131157446,0.1328,3754.5,3754.2,0.79323683]
[1753131157651,0.1328,3754.5,3754.4,4.135]
[1753131158644,2.7962705,3754.5,3754.4,4.135]
[1753131158849,0.1328,3754.5,3754.4,4.135]
[1753131159148,2.66320747,3754.9,3754.4,4.5883]
[1753131159355,0.1328,3754.8,3754.5,0.0266347]
[1753131159754,0.1328,3754.8,3753.7,0.8282]
[1753131159755,10.85526828,3754.6,3753.7,0.8282]
[1753131160071,2.66401042,3753.8,3753.3,0.8282]
[1753131160226,2.66401042,3753.8,3753.4,4.137]
[1753131160550,0.1328,3753.7,3753.4,4.137]
[1753131161345,0.7606,3753.9,3753.1,0.00100001]
[1753131161549,0.1328,3753.3,3753.2,4.137]
[1753131163252,0.1328,3753.3,3753.1,0.00100001]
[1753131163455,0.1328,3753.3,3753.2,4.137]
[1753131163981,0.1328,3753.3,3753.2,4.136]
[1753131172359,0.1328,3753.3,3753.2,6.80039305]
[1753131172578,0.1328,3753.3,3753.2,4.136]
[1753131175429,3.42249305,3753.2,3753.1,0.00100001]
[1753131175929,3.10649305,3753.2,3753.1,0.00100001]
[1753131176230,3.86459305,3753.2,3753.1,0.00100001]
[1753131176528,6.86459305,3753.2,3753.1,0.00100001]
[1753131176732,7.84544901,3753.2,3753.1,0.00100001]
[1753131179405,11.98044901,3753.2,3753.1,1e-08]
[1753131180099,12.73149954,3753.2,3752.6,0.001]
[1753131180335,14.27811632,3752.7,3752.6,0.001]
[1753131180905,14.72021632,3752.7,3752.6,0.001]
[1753131185141,17.85249938,3752.7,3752.6,0.001]
[1753131185304,17.72021632,3752.7,3752.6,0.001]
[1753131185627,2.66474804,3752.7,3752.6,0.001]
[1753131185944,0.7504,3753.0,3752.6,0.001]
[1753131186331,2.66473068,3752.8,3752.6,0.001]
[1753131186549,0.7504,3753.0,3752.6,0.001]
[1753131186746,2.66474804,3752.7,3752.6,0.001]
[1753131188860,3.41499218,3753.0,3752.6,0.001]
[1753131189072,0.1328,3752.7,3752.6,0.4295]
[1753131189455,3.10684804,3752.7,3752.6,0.001]
[1753131189776,3.0,3753.1,3752.6,0.4295]
[1753131190140,2.66453503,3753.0,3752.6,0.4295]
[1753131190370,2.66474804,3752.7,3752.6,0.001]
[1753131190573,2.66458363,3753.0,3752.6,0.001]
[1753131190763,2.6646133,3752.9,3752.6,0.001]
[1753131190967,2.6646779,3752.8,3752.6,0.001]
[1753131191152,0.002,3753.3,3752.6,0.001]
[1753131191352,2.66461106,3752.9,3752.6,0.001]
[1753131191661,0.002,3753.3,3752.6,0.001]
[1753131191973,2.66474804,3752.7,3752.6,0.001]
[1753131192137,0.4441,3753.3,3752.6,0.001]
[1753131192339,2.66450985,3753.1,3752.6,0.4295]
[1753131192552,2.6645441,3753.0,3752.6,0.4295]
[1753131192990,2.66462108,3752.9,3752.6,0.4295]
[1753131193679,2.66443976,3753.2,3752.6,0.001]
[1753131193876,2.6645116,3753.1,3752.7,0.4285]
[1753131194181,2.66455007,3753.0,3752.7,0.4285]
[1753131194551,2.66464845,3752.9,3752.6,0.001]
[1753131195697,2.66472929,3752.8,3752.6,0.001]
[1753131196184,2.66447352,3753.1,3752.6,0.001]
[1753131196185,2.66463435,3752.9,3752.6,0.001]
[1753131197489,2.66467797,3752.8,3752.6,0.001]
[1753131197850,2.66462351,3752.9,3752.6,0.001]
[1753131198184,2.66464885,3752.9,3752.6,0.001]
[1753131198856,2.66461452,3752.9,3752.6,0.001]
[1753131199558,0.1328,3752.7,3752.6,0.001]
[1753131205201,2.79754804,3752.7,3752.6,0.001]
[1753131205400,0.1328,3752.7,3752.6,4.136]
[1753131205602,0.1328,3752.7,3752.6,4.5894]
[1753131205990,7.15578925,3753.2,3752.6,4.5894]
[1753131206186,0.1328,3752.9,3752.8,0.8202]
[1753131206400,0.002,3753.1,3752.8,1.70374091]
[1753131206590,0.002,3753.1,3753.0,2.66453503]
[1753131206815,0.002,3753.1,3752.9,3.14462435]
[1753131207309,0.002,3753.1,3753.0,0.4534]
[1753131207827,0.002,3753.1,3753.0,3.11793503]
[1753131208005,0.002,3753.1,3753.0,5.29337146]
[1753131209493,0.002,3753.1,3753.0,9.42737146]
[1753131212755,0.002,3753.1,3753.0,12.42737146]
[1753131212923,0.002,3753.3,3753.2,6.98749305]
[1753131213123,0.002,3753.3,3753.2,8.7966395]
[1753131213325,0.002,3753.3,3753.2,9.3828395]
[1753131213529,0.002,3753.8,3753.2,9.3828395]
[1753131213530,0.002,3753.8,3753.7,2.66403814]
[1753131213840,0.002,3753.8,3753.7,11.26767852]
[1753131214057,0.002,3753.8,3753.7,11.24103814]
[1753131214264,0.002,3753.8,3753.7,13.35137922]
[1753131215565,1e-08,3753.8,3753.7,13.35137922]
[1753131216231,1e-08,3753.8,3753.7,23.05391722]
[1753131216557,1e-08,3753.8,3753.7,13.35137922]
[1753131216850,1e-08,3753.8,3753.7,15.73949122]
[1753131217259,1e-08,3753.8,3753.7,13.35137922]
[1753131217557,1e-08,3753.8,3753.7,15.90149122]
[1753131218327,1e-08,3753.8,3753.7,15.73949122]
[1753131218528,1e-08,3753.8,3753.7,16.29831022]
[1753131219463,1e-08,3753.8,3753.7,13.35137922]
[1753131219651,1e-08,3753.8,3753.7,16.87909122]
[1753131219847,1e-08,3753.8,3753.7,13.35137922]
[1753131220669,1e-08,3753.8,3753.7,15.35360322]
[1753131221350,1e-08,3753.8,3753.7,15.38510322]
[1753131221747,1e-08,3753.8,3753.7,15.17210322]
[1753131222060,1e-08,3754.1,3754.0,7.04192525]
[1753131222246,1e-08,3754.1,3754.0,19.80640481]
[1753131222446,1e-08,3754.1,3754.0,20.25980481]
[1753131222647,1e-08,3754.1,3754.0,27.11478481]
[1753131222974,1e-08,3754.1,3754.0,25.21360181]
[1753131224868,1e-08,3754.6,3754.5,3.9889705]
[1753131225046,1e-08,3754.6,3754.5,11.1456052]
[1753131225242,0.002,3755.3,3755.1,6.98854492]
[1753131225573,0.002,3755.3,3755.1,11.11854492]
[1753131225867,1e-08,3755.3,3755.2,6.988474]
[1753131226068,1e-08,3755.3,3755.2,9.1449586]
[1753131226595,1e-08,3755.3,3755.2,11.9439586]
[1753131226736,1e-08,3755.3,3755.2,25.5781156]
[1753131226932,1e-08,3756.0,3755.9,6.9879777]
[1753131227132,1e-08,3756.0,3755.9,25.7584547]
[1753131227340,1e-08,3756.0,3755.9,24.41943821]
[1753131227764,1e-08,3756.0,3755.9,27.21843821]
[1753131228185,1e-08,3756.0,3755.9,26.96948821]
[1753131228589,1e-08,3756.0,3755.9,27.09984609]
[1753131228949,0.8169,3758.0,3756.8,0.55]
[1753131229183,0.0020441,3758.2,3757.8,0.1328]
[1753131229392,0.0020441,3758.2,3757.6,0.1328]
[1753131229393,1.2936,3757.9,3757.6,0.1328]
[1753131229596,0.4567,3757.8,3757.7,6.79120233]
[1753131229799,0.02,3757.9,3757.7,6.79118074]
[1753131229968,0.02,3757.9,3757.8,2.68774282]
[1753131230163,0.02,3757.9,3757.8,3.23774282]
[1753131230474,0.4767,3757.9,3757.8,0.02661131]
[1753131230795,0.02,3757.9,3757.8,7.47293151]
[1753131231475,0.02,3757.9,3757.8,4.8118]
[1753131231682,0.02,3757.9,3757.8,4.129]
[1753131231683,1.2364,3757.9,3757.8,4.129]
[1753131231990,1.2364,3757.9,3757.4,0.15941414]
[1753131232156,0.59362,3757.8,3757.5,4.129]
[1753131232356,0.13692,3757.8,3757.6,4.129]
[1753131232589,3.11790233,3757.7,3757.6,4.129]
[1753131232784,0.4567,3757.7,3757.6,4.129]